fUSD/lending_fUSD_20250222
["ID","MTS","AMOUNT","RATE_DAILY","PERIOD"]
[354044534,1740201043951,-500.0,0.0001104,2]
[354044535,1740201043960,-539.17,0.0001104,2]
[354044537,1740201043970,-500.0,0.0001104,2]
[354044539,1740201043978,-500.0,0.0001104,2]
[354044541,1740201043988,-568.65048002,0.0001104,2]
[354044543,1740201043997,-500.0,0.0001104,2]
[354044545,1740201044006,-500.0,0.0001104,2]
[354044547,1740201044016,-1500.06,0.0001104,2]
[354044549,1740201044025,-500.0,0.0001104,2]
[354044551,1740201044034,-500.0,0.0001104,2]
[354044553,1740201044044,-500.0,0.0001104,2]
[354044555,1740201044053,-500.0,0.0001104,2]
[354044557,1740201044062,-500.0,0.0001104,2]
[354044559,1740201044071,-500.0,0.0001104,2]
[354044561,1740201044080,-500.0,0.0001104,2]
[354044563,1740201044089,-500.0,0.0001104,2]
[354044565,1740201044098,-500.0,0.0001104,2]
[354044567,1740201044107,-500.0,0.0001104,2]
[354044569,1740201044116,-500.0,0.0001104,2]
[354044571,1740201044125,-500.0,0.0001104,2]
[354044573,1740201044136,-500.0,0.0001104,2]
[354044575,1740201044146,-500.0,0.0001104,2]
[354044577,1740201044155,-500.0,0.0001104,2]
[354044579,1740201044166,-500.0,0.0001104,2]
[354044581,1740201044175,-500.0,0.0001104,2]
[354044583,1740201044184,-500.0,0.0001104,2]
[354044585,1740201044193,-500.0,0.0001104,2]
[354044587,1740201044202,-500.0,0.0001104,2]
[354044589,1740201044211,-500.0,0.0001104,2]
[354044591,1740201044221,-500.0,0.0001104,2]
[354044594,1740201044231,-500.0,0.0001104,2]
[354044596,1740201044241,-500.0,0.0001104,2]
[354044598,1740201044250,-625.98,0.0001104,2]
[354044600,1740201044262,-500.0,0.0001104,2]
[354044602,1740201044271,-500.0,0.0001104,2]
[354044604,1740201044281,-705.33,0.0001104,2]
[354044606,1740201044290,-500.0,0.0001104,2]
[354044608,1740201044301,-421.69671324,0.0001104,2]
[354044673,1740201045127,-150.0,9.61e-05,2]
[354044674,1740201045138,-150.0,9.673e-05,2]
[354044675,1740201045148,-150.0,9.977e-05,2]
[354044676,1740201045158,-70.47509425,0.00010663,2]
[354044677,1740201045169,-79.52490575,0.00010663,2]
[354044679,1740201045178,-150.0,0.00010715,2]
[354044681,1740201045188,-78.30328676,0.0001104,2]
[354044683,1740201045197,-500.0,0.0001104,2]
[354044684,1740201045206,-500.0,0.0001104,2]
[354044686,1740201045215,-500.0,0.0001104,2]
[354044688,1740201045224,-74.56347939,0.0001104,2]
[354044689,1740201045236,-425.43652061,0.0001104,2]
[354044690,1740201045245,-630.54,0.0001104,2]
[354044691,1740201045254,-500.0,0.0001104,2]
[354044692,1740201045268,-500.0,0.0001104,2]
[354044694,1740201045278,-566.265,0.0001104,2]
[354044696,1740201045287,-500.0,0.0001104,2]
[354044698,1740201045296,-500.0,0.0001104,2]
[354044699,1740201045306,-500.0,0.0001104,2]
[354044700,1740201045315,-562.26,0.0001104,2]
[354044701,1740201045323,-500.0,0.0001104,2]
[354044702,1740201045332,-500.0,0.0001104,2]
[354044703,1740201045342,-500.0,0.0001104,2]
[354044704,1740201045351,-500.0,0.0001104,2]
[354044705,1740201045360,-500.0,0.0001104,2]
[354044706,1740201045369,-500.0,0.0001104,2]
[354044707,1740201045378,-973.39,0.0001104,2]
[354044709,1740201045387,-500.0,0.0001104,2]
[354044710,1740201045396,-500.0,0.0001104,2]
[354044711,1740201045405,-534.86,0.0001104,2]
[354044712,1740201045414,-500.0,0.0001104,2]
[354044713,1740201045424,-500.0,0.0001104,2]
[354044714,1740201045433,-500.0,0.0001104,2]
[354044715,1740201045442,-799.49,0.0001104,2]
[354044716,1740201045451,-500.0,0.0001104,2]
[354044717,1740201045460,-500.0,0.0001104,2]
[354044718,1740201045468,-500.0,0.0001104,2]
[354044719,1740201045477,-500.0,0.0001104,2]
[354044721,1740201045486,-1000.0,0.0001104,2]
[354044723,1740201045495,-500.0,0.0001104,2]
[354044725,1740201045504,-500.0,0.0001104,2]
[354044727,1740201045512,-2578.79,0.0001104,2]
[354044729,1740201045521,-494.64455238,0.0001104,2]
[354044731,1740201045532,-5.35544762,0.0001104,2]
[354044733,1740201045541,-500.0,0.0001104,2]
[354044735,1740201045550,-500.0,0.0001104,2]
[354044737,1740201045559,-500.0,0.0001104,2]
[354044739,1740201045568,-500.0,0.0001104,2]
[354044741,1740201045578,-500.0,0.0001104,2]
[354044743,1740201045587,-500.0,0.0001104,2]
[354044745,1740201045596,-500.0,0.0001104,2]
[354044747,1740201045605,-500.0,0.0001104,2]
[354044749,1740201045615,-500.0,0.0001104,2]
[354044751,1740201045624,-1001.08,0.0001104,2]
[354044753,1740201045633,-520.47,0.0001104,2]
[354044755,1740201045642,-500.0,0.0001104,2]
[354044757,1740201045651,-500.0,0.0001104,2]
[354044759,1740201045660,-299.61075654,0.0001104,2]
[354044763,1740201045686,-200.38924346,0.0001104,2]
[354044765,1740201045695,-163.11275654,0.0001104,2]
[354044767,1740201045706,-336.88724346,0.0001104,2]
[354044769,1740201045715,-500.0,0.0001104,2]
[354044771,1740201045724,-566.39,0.0001104,2]
[354044773,1740201045733,-500.0,0.0001104,2]
[354044775,1740201045742,-500.0,0.0001104,2]
[354044777,1740201045751,-440.44314362,0.0001104,2]
[354044779,1740201045763,-62.96622374,0.0001104,2]
[354044781,1740201045773,-208.95377626,0.0001104,2]
[354044835,1740201046261,-291.04622374,0.0001104,2]
[354044836,1740201046271,-438.07728166,0.0001104,2]
[354044839,1740201046290,-61.92271834,0.0001104,2]
[354044841,1740201046299,-500.0,0.0001104,2]
[354044844,1740201046311,-500.0,0.0001104,2]
[354044845,1740201046320,-595.82,0.0001104,2]
[354044847,1740201046329,-500.0,0.0001104,2]
[354044849,1740201046339,-500.0,0.0001104,2]
[354044851,1740201046348,-500.0,0.0001104,2]
[354044853,1740201046357,-531.04,0.0001104,2]
[354044855,1740201046366,-374.43581413,0.0001104,2]
[354044857,1740201046375,-151.0,0.00011041,2]
[354044859,1740201046384,-501.87981148,0.00011041,2]
[354044861,1740201046393,-500.0,0.00011041,2]
[354044863,1740201046403,-560.0688909,0.00011041,2]
[354044866,1740201046412,-500.0,0.00011041,2]
[354044867,1740201046422,-500.0,0.00011041,2]
[354044869,1740201046431,-500.0,0.00011041,2]
[354044872,1740201046441,-70.97009573,0.00011041,2]
[354044874,1740201046453,-429.02990427,0.00011041,2]
[354044876,1740201046462,-191.74323436,0.00011041,2]
[354044878,1740201046471,-500.0,0.00011041,2]
[354044880,1740201046481,-500.0,0.00011041,2]
[354044882,1740201046490,-500.0,0.00011041,2]
[354044883,1740201046499,-500.0,0.00011041,2]
[354044885,1740201046509,-500.0,0.00011041,2]
[354044887,1740201046518,-500.0,0.00011041,2]
[354044889,1740201046528,-500.0,0.00011041,2]
[354044891,1740201046537,-500.0,0.00011041,2]
[354044893,1740201046546,-500.0,0.00011041,2]
[354044895,1740201046554,-500.0,0.00011041,2]
[354044897,1740201046563,-500.0,0.00011041,2]
[354044899,1740201046572,-500.0,0.00011041,2]
[354044901,1740201046582,-500.0,0.00011041,2]
[354044903,1740201046590,-500.0,0.00011041,2]
[354044905,1740201046599,-429.5170765,0.00011041,2]
[354044907,1740201046611,-70.4829235,0.00011041,2]
[354044910,1740201046620,-579.05725322,0.00011041,2]
[354044911,1740201046629,-500.0,0.00011041,2]
[354044913,1740201046638,-551.10326666,0.00011041,2]
[354044916,1740201046647,-500.0,0.00011041,2]
[354044917,1740201046657,-151.0,0.00011041,2]
[354044919,1740201046666,-150.0,0.00011048,2]
[354044921,1740201046675,-150.0,0.00011048,2]
[354044924,1740201046685,-150.0,0.00011071,2]
[354044926,1740201046694,-150.0,0.00011082,2]
[354044928,1740201046704,-1190.22376107,0.00011099,2]
[354044929,1740201046713,-58.13279555,0.00011099,2]
[354044932,1740201046725,-562.14704706,0.00011099,2]
[354044934,1740201046734,-150.0,0.00011109,2]
[354044936,1740201046744,-150.0,0.00011115,2]
[354044938,1740201046753,-17267.10007878,0.00011121,2]
[354044940,1740201046763,-151.0,0.00011121,2]
[354044942,1740201046772,-156.16043432,0.00011122,2]
[354044944,1740201046783,-707.42945643,0.00011122,2]
[354044946,1740201046792,-151.0,0.00011122,2]
[354044948,1740201046801,-500.0,0.00011122,2]
[354044950,1740201046810,-500.0,0.00011123,2]
[354044952,1740201046820,-151.0,0.00011123,2]
[354044954,1740201046829,-151.0,0.00011123,2]
[354044956,1740201046839,-151.0,0.00011123,2]
[354044958,1740201046848,-151.0,0.00011123,2]
[354044960,1740201046857,-151.0,0.00011123,2]
[354044962,1740201046866,-151.0,0.00011123,2]
[354044964,1740201046875,-151.0,0.00011123,2]
[354044966,1740201046883,-151.0,0.00011123,2]
[354044968,1740201046892,-151.0,0.00011123,2]
[354044970,1740201046901,-151.0,0.00011123,2]
[354044971,1740201046909,-151.0,0.00011123,2]
[354044973,1740201046918,-151.0,0.00011123,2]
[354044975,1740201046927,-78.57054357,0.00011123,2]
[354044978,1740201046938,-166.77654543,0.00011123,2]
[354044980,1740201046948,-374.54050311,0.00011123,2]
[354044981,1740201046957,-257.86024193,0.00011123,2]
[354044982,1740201046966,-557.08090385,0.00011123,2]
[354044983,1740201046975,-569.788514,0.00011123,2]
[354044984,1740201046987,-651.403944,0.00011123,2]
[354044985,1740201046996,-500.0,0.00011123,2]
[354044986,1740201047005,-500.0,0.00011123,2]
[354044987,1740201047014,-500.0,0.00011123,2]
[354044988,1740201047023,-500.0,0.00011123,2]
[354044990,1740201047032,-19.69159063,0.00011123,2]
[354044992,1740201047044,-480.30840937,0.00011123,2]
[354044994,1740201047053,-500.0,0.00011123,2]
[354044996,1740201047062,-82.49989323,0.00011123,2]
[354044998,1740201047081,-417.50010677,0.00011123,2]
[354044999,1740201047090,-500.0,0.00011123,2]
[354045000,1740201047099,-500.0,0.00011123,2]
[354045001,1740201047108,-500.0,0.00011123,2]
[354045002,1740201047117,-500.0,0.00011123,2]
[354045003,1740201047126,-500.0,0.00011123,2]
[354045004,1740201047135,-500.0,0.00011123,2]
[354045005,1740201047145,-238.44072365,0.00011123,2]
[354045006,1740201047155,-500.0,0.00011123,2]
[354045007,1740201047164,-379.64879313,0.00011123,2]
[354045008,1740201047173,-500.0,0.00011123,2]
[354045009,1740201047183,-500.0,0.00011123,2]
[354045010,1740201047192,-500.0,0.00011123,2]
[354045011,1740201047201,-500.0,0.00011123,2]
[354045012,1740201047210,-500.0,0.00011123,2]
[354045013,1740201047219,-500.0,0.00011123,2]
[354045014,1740201047228,-500.0,0.00011123,2]
[354045015,1740201047237,-500.0,0.00011123,2]
[354045016,1740201047246,-248.49824168,0.00011123,2]
[354045017,1740201047257,-500.0,0.00011123,2]
[354045018,1740201047269,-500.0,0.00011123,2]
[354045019,1740201047279,-500.0,0.00011123,2]
[354045020,1740201047288,-500.0,0.00011123,2]
[354045021,1740201047298,-500.0,0.00011123,2]
[354045022,1740201047307,-500.0,0.00011123,2]
[354045023,1740201047317,-500.0,0.00011123,2]
[354045024,1740201047326,-500.0,0.00011123,2]
[354045025,1740201047336,-500.0,0.00011123,2]
[354045026,1740201047347,-500.0,0.00011123,2]
[354045027,1740201047356,-500.0,0.00011123,2]
[354045028,1740201047365,-500.0,0.00011123,2]
[354045029,1740201047375,-500.0,0.00011123,2]
[354045030,1740201047384,-500.0,0.00011123,2]
[354045031,1740201047394,-500.0,0.00011123,2]
[354045032,1740201047403,-500.0,0.00011123,2]
[354045033,1740201047413,-500.0,0.00011123,2]
[354045034,1740201047422,-500.0,0.00011123,2]
[354045035,1740201047432,-500.0,0.00011123,2]
[354045036,1740201047441,-500.0,0.00011123,2]
[354045037,1740201047451,-500.0,0.00011123,2]
[354045038,1740201047460,-500.0,0.00011123,2]
[354045039,1740201047469,-500.0,0.00011123,2]
[354045040,1740201047479,-500.0,0.00011123,2]
[354045041,1740201047488,-500.0,0.00011123,2]
[354045042,1740201047497,-500.0,0.00011123,2]
[354045043,1740201047508,-500.0,0.00011123,2]
[354045044,1740201047517,-500.0,0.00011123,2]
[354045045,1740201047526,-500.0,0.00011123,2]
[354045046,1740201047535,-500.0,0.00011123,2]
[354045047,1740201047544,-495.56883958,0.00011123,2]
[354045048,1740201047554,-500.0,0.00011123,2]
[354045049,1740201047563,-500.0,0.00011123,2]
[354045050,1740201047573,-500.0,0.00011123,2]
[354045051,1740201047582,-622.7,0.00011123,2]
[354045052,1740201047592,-500.0,0.00011123,2]
[354045053,1740201047601,-500.0,0.00011123,2]
[354045054,1740201047611,-500.0,0.00011123,2]
[354045055,1740201047620,-500.0,0.00011123,2]
[354045056,1740201047630,-500.0,0.00011123,2]
[354045057,1740201047640,-500.0,0.00011123,2]
[354045058,1740201047649,-500.0,0.00011123,2]
[354045059,1740201047659,-500.0,0.00011123,2]
[354045060,1740201047668,-500.0,0.00011123,2]
[354045061,1740201047678,-500.0,0.00011123,2]
[354045062,1740201047687,-500.0,0.00011123,2]
[354045063,1740201047697,-500.0,0.00011123,2]
[354045064,1740201047707,-500.0,0.00011123,2]
[354045065,1740201047716,-500.0,0.00011123,2]
[354045066,1740201047725,-553.06,0.00011123,2]
[354045067,1740201047735,-500.0,0.00011123,2]
[354045068,1740201047744,-500.0,0.00011123,2]
[354045069,1740201047753,-500.0,0.00011123,2]
[354045070,1740201047763,-218.20346659,0.00011123,2]
[354045071,1740201047772,-500.0,0.00011123,2]
[354045072,1740201047782,-500.0,0.00011123,2]
[354045073,1740201047791,-500.0,0.00011123,2]
[354045074,1740201047800,-500.0,0.00011123,2]
[354045075,1740201047810,-500.0,0.00011123,2]
[354045076,1740201047819,-151.0,0.00011123,2]
[354045077,1740201047829,-500.0,0.00011123,2]
[354045078,1740201047838,-500.0,0.00011123,2]
[354045079,1740201047848,-151.0,0.00011123,2]
[354045080,1740201047857,-500.0,0.00011123,2]
[354045081,1740201047866,-500.0,0.00011123,2]
[354045082,1740201047875,-500.0,0.00011123,2]
[354045083,1740201047885,-500.0,0.00011123,2]
[354045084,1740201047894,-500.0,0.00011123,2]
[354045085,1740201047903,-500.0,0.00011123,2]
[354045086,1740201047912,-387.79921461,0.00011123,2]
[354045087,1740201047921,-500.0,0.00011123,2]
[354045088,1740201047931,-500.0,0.00011123,2]
[354045089,1740201047940,-503.62695535,0.00011123,2]
[354045090,1740201047949,-500.0,0.00011123,2]
[354045091,1740201047958,-915.08,0.00011123,2]
[354045092,1740201047968,-500.0,0.00011123,2]
[354045093,1740201047977,-809.4,0.00011123,2]
[354045094,1740201047986,-154.25493744,0.00011123,2]
[354045095,1740201048000,-405.46984177,0.00011123,2]
[354045096,1740201048009,-550.31,0.00011123,2]
[354045097,1740201048020,-500.0,0.00011123,2]
[354045098,1740201048029,-500.0,0.00011123,2]
[354045099,1740201048039,-551.36,0.00011123,2]
[354045100,1740201048048,-500.0,0.00011123,2]
[354045101,1740201048058,-688.01,0.00011123,2]
[354045102,1740201048067,-582.41,0.00011123,2]
[354045103,1740201048076,-550.78,0.00011123,2]
[354045104,1740201048085,-533.43172159,0.00011123,2]
[354045105,1740201048095,-500.0,0.00011123,2]
[354045106,1740201048104,-500.0,0.00011123,2]
[354045107,1740201048113,-500.0,0.00011123,2]
[354045108,1740201048123,-2756.97,0.00011123,2]
[354045109,1740201048132,-500.0,0.00011123,2]
[354045110,1740201048142,-500.0,0.00011123,2]
[354045111,1740201048152,-500.0,0.00011123,2]
[354045112,1740201048161,-598.11,0.00011123,2]
[354045113,1740201048170,-500.0,0.00011123,2]
[354045114,1740201048179,-500.0,0.00011123,2]
[354045115,1740201048188,-500.0,0.00011123,2]
[354045116,1740201048197,-500.0,0.00011123,2]
[354045117,1740201048206,-500.0,0.00011123,2]
[354045118,1740201048215,-500.0,0.00011123,2]
[354045119,1740201048224,-516.8168196,0.00011123,2]
[354045120,1740201048233,-500.0,0.00011123,2]
[354045121,1740201048243,-504.2,0.00011123,2]
[354045122,1740201048253,-500.0,0.00011123,2]
[354045123,1740201048267,-500.0,0.00011123,2]
[354045124,1740201048277,-500.0,0.00011123,2]
[354045125,1740201048286,-1055.45,0.00011123,2]
[354045126,1740201048296,-589.18,0.00011123,2]
[354045127,1740201048306,-500.0,0.00011123,2]
[354045128,1740201048316,-151.0,0.00011123,2]
[354045129,1740201048326,-500.0,0.00011123,2]
[354045130,1740201048337,-151.0,0.00011123,2]
[354045131,1740201048346,-500.0,0.00011123,2]
[354045132,1740201048356,-500.0,0.00011123,2]
[354045133,1740201048365,-675.17,0.00011123,2]
[354045134,1740201048374,-500.0,0.00011123,2]
[354045135,1740201048383,-500.0,0.00011123,2]
[354045136,1740201048392,-500.0,0.00011123,2]
[354045137,1740201048402,-500.0,0.00011123,2]
[354045138,1740201048412,-500.0,0.00011123,2]
[354045139,1740201048421,-500.0,0.00011123,2]
[354045140,1740201048430,-500.0,0.00011123,2]
[354045141,1740201048439,-500.0,0.00011123,2]
[354045142,1740201048612,-500.0,0.00011123,2]
[354045143,1740201048622,-500.0,0.00011123,2]
[354045144,1740201048632,-500.0,0.00011123,2]
[354045145,1740201048641,-500.0,0.00011123,2]
[354045146,1740201048651,-500.0,0.00011123,2]
[354045147,1740201048660,-500.0,0.00011123,2]
[354045148,1740201048669,-500.0,0.00011123,2]
[354045149,1740201048679,-500.0,0.00011123,2]
[354045150,1740201048689,-500.0,0.00011123,2]
[354045151,1740201048699,-500.0,0.00011123,2]
[354045152,1740201048709,-500.0,0.00011123,2]
[354045153,1740201048718,-500.0,0.00011123,2]
[354045154,1740201048728,-539.17,0.00011123,2]
[354045155,1740201048738,-500.0,0.00011123,2]
[354045156,1740201048747,-500.0,0.00011123,2]
[354045157,1740201048757,-500.0,0.00011123,2]
[354045158,1740201048767,-500.0,0.00011123,2]
[354045159,1740201048776,-1500.06,0.00011123,2]
[354045160,1740201048786,-500.0,0.00011123,2]
[354045161,1740201048795,-500.0,0.00011123,2]
[354045162,1740201048804,-500.0,0.00011123,2]
[354045163,1740201048814,-500.0,0.00011123,2]
[354045164,1740201048823,-537.82929625,0.00011123,2]
[354045165,1740201048832,-500.0,0.00011123,2]
[354045166,1740201048842,-500.0,0.00011123,2]
[354045167,1740201048851,-500.0,0.00011123,2]
[354045168,1740201048861,-500.0,0.00011123,2]
[354045169,1740201048871,-500.0,0.00011123,2]
[354045170,1740201048880,-500.0,0.00011123,2]
[354045171,1740201048889,-500.0,0.00011123,2]
[354045172,1740201048899,-500.0,0.00011123,2]
[354045173,1740201048909,-500.0,0.00011123,2]
[354045174,1740201048918,-500.0,0.00011123,2]
[354045175,1740201048927,-500.0,0.00011123,2]
[354045176,1740201048937,-500.0,0.00011123,2]
[354045177,1740201048947,-500.0,0.00011123,2]
[354045178,1740201048957,-500.0,0.00011123,2]
[354045179,1740201048967,-500.0,0.00011123,2]
[354045180,1740201048976,-500.0,0.00011123,2]
[354045181,1740201048986,-500.0,0.00011123,2]
[354045182,1740201048996,-500.0,0.00011123,2]
[354045183,1740201049006,-625.98,0.00011123,2]
[354045184,1740201049015,-500.0,0.00011123,2]
[354045185,1740201049025,-705.33,0.00011123,2]
[354045186,1740201049035,-500.0,0.00011123,2]
[354045187,1740201049046,-500.0,0.00011123,2]
[354045188,1740201049055,-500.0,0.00011123,2]
[354045189,1740201049065,-273.0092342,0.00011123,2]
[354045190,1740201049076,-500.0,0.00011123,2]
[354045191,1740201049085,-500.0,0.00011123,2]
[354045192,1740201049095,-500.0,0.00011123,2]
[354045193,1740201049104,-500.0,0.00011123,2]
[354045194,1740201049113,-500.0,0.00011123,2]
[354045195,1740201049124,-500.0,0.00011123,2]
[354045196,1740201049134,-500.0,0.00011123,2]
[354045197,1740201049145,-562.26,0.00011123,2]
[354045198,1740201049156,-500.0,0.00011123,2]
[354045199,1740201049166,-500.0,0.00011123,2]
[354045200,1740201049176,-278.20763907,0.00011123,2]
[354045201,1740201049186,-500.0,0.00011123,2]
[354045202,1740201049195,-500.0,0.00011123,2]
[354045203,1740201049205,-973.39,0.00011123,2]
[354045204,1740201049215,-500.0,0.00011123,2]
[354045205,1740201049225,-500.0,0.00011123,2]
[354045206,1740201049234,-534.86,0.00011123,2]
[354045207,1740201049244,-500.0,0.00011123,2]
[354045208,1740201049253,-500.0,0.00011123,2]
[354045209,1740201049266,-799.49,0.00011123,2]
[354045210,1740201049275,-500.0,0.00011123,2]
[354045211,1740201049284,-500.0,0.00011123,2]
[354045212,1740201049294,-500.0,0.00011123,2]
[354045213,1740201049303,-500.0,0.00011123,2]
[354045214,1740201049313,-1000.0,0.00011123,2]
[354045215,1740201049322,-500.0,0.00011123,2]
[354045216,1740201049333,-500.0,0.00011123,2]
[354045217,1740201049343,-2578.79,0.00011123,2]
[354045218,1740201049352,-500.0,0.00011123,2]
[354045219,1740201049363,-500.0,0.00011123,2]
[354045220,1740201049373,-500.0,0.00011123,2]
[354045221,1740201049383,-500.0,0.00011123,2]
[354045222,1740201049393,-307.04981517,0.00011123,2]
[354045223,1740201049403,-500.0,0.00011123,2]
[354045224,1740201049412,-500.0,0.00011123,2]
[354045225,1740201049422,-500.0,0.00011123,2]
[354045226,1740201049432,-500.0,0.00011123,2]
[354045227,1740201049442,-1001.08,0.00011123,2]
[354045228,1740201049452,-520.47,0.00011123,2]
[354045229,1740201049461,-500.0,0.00011123,2]
[354045230,1740201049470,-500.0,0.00011123,2]
[354045231,1740201049480,-500.0,0.00011123,2]
[354045232,1740201049489,-500.0,0.00011123,2]
[354045233,1740201049498,-500.0,0.00011123,2]
[354045234,1740201049508,-566.39,0.00011123,2]
[354045235,1740201049517,-500.0,0.00011123,2]
[354045236,1740201049527,-500.0,0.00011123,2]
[354045237,1740201049536,-500.0,0.00011123,2]
[354045238,1740201049546,-500.0,0.00011123,2]
[354045239,1740201049556,-500.0,0.00011123,2]
[354045240,1740201049565,-500.0,0.00011123,2]
[354045241,1740201049574,-595.82,0.00011123,2]
[354045242,1740201049584,-500.0,0.00011123,2]
[354045243,1740201049593,-500.0,0.00011123,2]
[354045244,1740201049603,-531.04,0.00011123,2]
[354045245,1740201049613,-150.0,0.00011127,2]
[354045246,1740201049622,-500.0,0.00011129,2]
[354045247,1740201049632,-162.03727568,0.00011129,2]
[354045248,1740201049641,-282.44330327,0.00011129,2]
[354045249,1740201049650,-150.0,0.00011147,2]
[354045250,1740201049660,-150.0,0.00011149,2]
[354045251,1740201049669,-2686.0,0.00011162,2]
[354045252,1740201049679,-150.0,0.00011167,2]
[354045253,1740201049688,-150.0,0.00011176,2]
[354045254,1740201049697,-150.0,0.00011183,2]
[354045255,1740201049707,-150.0,0.00011185,2]
[354045256,1740201049717,-151.350999,0.00011204,2]
[354045257,1740201049726,-630.54,0.00011204,2]
[354045258,1740201049735,-150.0,0.00011205,2]
[354045259,1740201049745,-500.0,0.00011205,2]
[354045260,1740201049754,-569.788514,0.00011205,2]
[354045261,1740201049763,-651.403944,0.00011205,2]
[354045262,1740201049772,-500.0,0.00011205,2]
[354045263,1740201049782,-500.0,0.00011205,2]
[354045264,1740201049791,-500.0,0.00011205,2]
[354045265,1740201049801,-500.92343822,0.00011205,2]
[354045266,1740201049811,-500.0,0.00011205,2]
[354045267,1740201049820,-500.0,0.00011205,2]
[354045268,1740201049830,-500.0,0.00011205,2]
[354045269,1740201049839,-500.0,0.00011205,2]
[354045270,1740201049849,-500.0,0.00011205,2]
[354045271,1740201049858,-472.87257036,0.00011205,2]
[354045272,1740201049867,-500.0,0.00011205,2]
[354045273,1740201049878,-500.0,0.00011205,2]
[354045274,1740201049887,-500.0,0.00011205,2]
[354045275,1740201049897,-500.0,0.00011205,2]
[354045276,1740201049906,-500.0,0.00011205,2]
[354045277,1740201049915,-500.0,0.00011205,2]
[354045278,1740201049924,-608.59202404,0.00011205,2]
[354045279,1740201049933,-500.0,0.00011205,2]
[354045280,1740201049943,-500.0,0.00011205,2]
[354045281,1740201049952,-500.0,0.00011205,2]
[354045282,1740201049961,-500.0,0.00011205,2]
[354045283,1740201049970,-500.0,0.00011205,2]
[354045284,1740201049980,-573.64025564,0.00011205,2]
[354045285,1740201049989,-500.0,0.00011205,2]
[354045286,1740201049998,-500.0,0.00011205,2]
[354045287,1740201050007,-500.0,0.00011205,2]
[354045288,1740201050016,-500.0,0.00011205,2]
[354045289,1740201050025,-500.0,0.00011205,2]
[354045290,1740201050035,-500.0,0.00011205,2]
[354045291,1740201050044,-500.0,0.00011205,2]
[354045292,1740201050053,-500.0,0.00011205,2]
[354045293,1740201050063,-500.0,0.00011205,2]
[354045294,1740201050072,-500.0,0.00011205,2]
[354045295,1740201050081,-500.0,0.00011205,2]
[354045296,1740201050090,-162.47970797,0.00011205,2]
[354045297,1740201050100,-500.0,0.00011205,2]
[354045298,1740201050109,-500.0,0.00011205,2]
[354045299,1740201050118,-500.0,0.00011205,2]
[354045300,1740201050127,-527.17605668,0.00011205,2]
[354045301,1740201050137,-500.0,0.00011205,2]
[354045302,1740201050149,-500.0,0.00011205,2]
[354045303,1740201050158,-500.0,0.00011205,2]
[354045304,1740201050167,-500.0,0.00011205,2]
[354045305,1740201050180,-210.32279818,0.00011205,2]
[354045306,1740201050189,-387.71130328,0.00011205,2]